bitfinex-derivatives/quotes_BTCF0:USTF0_20250812
["timestamp","ask_amount","ask_price","bid_price","bid_amount"]
[1755006691710,2.8010712,118750.0,118740.0,0.31395211]
[1755006691905,2.7768312,118750.0,118740.0,0.33001211]
[1755006692402,1.737451,118750.0,118740.0,0.33001211]
[1755006692607,1.737451,118750.0,118740.0,0.9330161]
[1755006692904,1.637451,118750.0,118740.0,0.9330161]
[1755006693106,1.527451,118750.0,118740.0,1.20651725]
[1755006693413,0.027451,118750.0,118740.0,1.20651725]
[1755006694010,1.08339594,118790.0,118780.0,0.0841889]
[1755006694310,0.13,118790.0,118780.0,0.76372289]
[1755006694904,0.0925056,118790.0,118780.0,0.76372289]
[1755006695107,0.29731387,118810.0,118800.0,0.0841747]
[1755006695305,0.30543957,118810.0,118800.0,0.1270847]
[1755006695612,0.24896887,118810.0,118800.0,0.1607047]
[1755006695808,0.25069887,118810.0,118800.0,0.1607047]
[1755006696008,0.13710017,118810.0,118800.0,0.76370869]
[1755006696216,0.13710017,118810.0,118800.0,0.1607047]
[1755006696516,0.22126777,118810.0,118800.0,0.76370869]
[1755006696704,0.25069777,118810.0,118800.0,0.1607047]
[1755006696905,0.27582777,118810.0,118800.0,0.1105147]
[1755006697100,0.40327877,118810.0,118800.0,0.1105147]
[1755006697305,0.29225117,118810.0,118800.0,0.76370869]
[1755006697514,0.37941887,118810.0,118800.0,0.76470869]
[1755006697705,0.37941887,118810.0,118800.0,0.1617047]
[1755006697900,0.38114887,118810.0,118800.0,0.1617047]
[1755006698101,0.26755117,118810.0,118800.0,0.76470869]
[1755006698306,0.240451,118810.0,118800.0,0.76470869]
[1755006699006,0.238451,118810.0,118800.0,0.1627047]
[1755006699208,1.73508984,118810.0,118800.0,0.76570869]
[1755006699409,1.81925754,118810.0,118800.0,0.1627047]
[1755006699603,1.86376754,118810.0,118800.0,0.07853]
[1755006699915,1.75376754,118810.0,118800.0,0.002]
[1755006700110,2.47677153,118810.0,118800.0,0.002]
[1755006700308,2.47327136,118810.0,118800.0,0.002]
[1755006700510,1.84513737,118810.0,118800.0,0.07853]
[1755006700706,0.0841748,118800.0,118790.0,0.11109129]
[1755006700917,0.2587348,118800.0,118790.0,0.13743129]
[1755006701513,0.2587348,118800.0,118790.0,0.17105129]
[1755006701712,0.2336048,118800.0,118790.0,0.18762129]
[1755006702011,0.2318748,118800.0,118790.0,0.79062528]
[1755006702315,0.2041748,118800.0,118790.0,0.79062528]
[1755006703005,0.12,118800.0,118790.0,0.79062528]
[1755006703203,0.2041749,118800.0,118790.0,0.79062528]
[1755006703408,0.2041749,118800.0,118790.0,0.18762129]
[1755006703707,0.2587349,118800.0,118790.0,0.18762129]
[1755006704315,0.2597349,118800.0,118790.0,0.19062129]
[1755006704716,0.2597349,118800.0,118790.0,0.14043129]
[1755006705316,0.37027457,118800.0,118790.0,0.14043129]
[1755006705908,0.37027457,118800.0,118790.0,0.10555737]
[1755006706522,0.26096967,118800.0,118790.0,0.78509136]
[1755006706722,0.25923967,118800.0,118790.0,0.18208737]
[1755006706912,0.34341437,118800.0,118790.0,0.18208737]
[1755006707313,0.34514437,118800.0,118790.0,0.18208737]
[1755006707512,0.26096967,118800.0,118790.0,0.18208737]
[1755006707721,0.23153967,118800.0,118790.0,0.78509136]
[1755006708113,0.23153967,118800.0,118790.0,0.18208737]
[1755006708313,0.34341437,118800.0,118790.0,0.18208737]
[1755006708622,0.25923967,118800.0,118790.0,0.18208737]
[1755006709125,0.37027437,118800.0,118790.0,0.18208737]
[1755006709822,0.85327836,118800.0,118790.0,0.10555727]
[1755006710118,0.96327836,118800.0,118790.0,0.02137547]
[1755006710322,2.50804235,118800.0,118790.0,0.003]
[1755006710522,0.084196,118770.0,118760.0,0.43673486]
[1755006710721,0.13943,118770.0,118760.0,0.34761546]
[1755006711023,0.11,118770.0,118760.0,0.95061945]
[1755006711522,0.11,118770.0,118760.0,0.95896033]
[1755006712024,0.195196,118770.0,118760.0,0.34961546]
[1755006712223,0.224626,118770.0,118760.0,0.34961546]
[1755006712826,0.222896,118770.0,118760.0,0.41540864]
[1755006713918,0.222896,118770.0,118760.0,0.02048586]
[1755006714113,1.190436,118770.0,118760.0,0.02048586]
[1755006714322,0.249756,118770.0,118760.0,0.13102896]
[1755006714521,0.248756,118770.0,118760.0,0.09501586]
[1755006714719,0.85275999,118770.0,118760.0,0.01848586]
[1755006714923,0.249756,118770.0,118760.0,0.12902896]
[1755006715126,0.249756,118770.0,118760.0,0.16264896]
[1755006715327,0.36029567,118770.0,118760.0,0.17921896]
[1755006715627,0.33343567,118770.0,118760.0,0.17921896]
[1755006715927,0.33516567,118770.0,118760.0,0.17921896]
[1755006716925,0.24923967,118770.0,118760.0,0.17921896]
[1755006717228,0.24923967,118770.0,118760.0,0.78222295]
[1755006717422,0.22153967,118770.0,118760.0,0.78222295]
[1755006717629,0.16153967,118770.0,118760.0,0.78222295]
[1755006718330,0.11053967,118770.0,118760.0,0.78222295]
[1755006718525,0.11153967,118770.0,118760.0,0.78222295]
[1755006719424,0.1960558,118800.0,118790.0,0.0841818]
[1755006719729,0.4253653,118800.0,118790.0,0.1607118]
[1755006719929,0.4420553,118800.0,118790.0,0.1607118]
[1755006720629,0.0841818,118790.0,118780.0,0.1683715]
[1755006720934,0.084196,118770.0,118760.0,0.37676796]
[1755006721236,0.190486,118770.0,118760.0,0.01848586]
[1755006721530,0.190486,118770.0,118750.0,0.278956]
[1755006721531,0.084203,118760.0,118750.0,0.278956]
[1755006721719,0.87680699,118760.0,118750.0,0.2283698]
[1755006721917,0.290493,118760.0,118750.0,0.0842041]
[1755006722425,0.290493,118760.0,118750.0,0.76624809]
[1755006722622,0.214203,118760.0,118750.0,0.76624809]
[1755006723130,0.214203,118760.0,118750.0,0.1632441]
[1755006723324,0.291233,118760.0,118750.0,0.1632441]
[1755006723529,0.0842101,118750.0,118740.0,0.18191331]
[1755006723731,0.88424409,118750.0,118740.0,0.01865611]
[1755006724933,0.2812401,118750.0,118740.0,0.10287331]
[1755006725230,0.2812401,118750.0,118740.0,0.18191331]
[1755006725231,0.4086911,118750.0,118740.0,0.18191331]
[1755006725534,0.3326612,118750.0,118740.0,0.18191331]
[1755006725733,0.3913912,118750.0,118740.0,0.18191331]
[1755006726731,0.4096912,118750.0,118740.0,0.18191331]
[1755006727132,0.3913912,118750.0,118740.0,0.18191331]
[1755006727528,0.3326612,118750.0,118740.0,0.18191331]
[1755006727722,0.128451,118750.0,118740.0,0.7849173]
[1755006728128,1.628451,118750.0,118740.0,0.7849173]
[1755006728429,0.128451,118750.0,118740.0,1.0033493]
[1755006728931,0.001,118770.0,118760.0,0.084203]
[1755006729231,0.0183,118790.0,118780.0,0.2525623]
[1755006729425,0.0183,118790.0,118780.0,1.0198289]
[1755006729825,0.07703,118790.0,118780.0,1.0198289]
[1755006730024,0.2412118,118790.0,118780.0,0.0841889]
[1755006730531,0.76003399,118790.0,118780.0,0.0841889]
[1755006730733,0.15703,118790.0,118780.0,0.0841889]
[1755006731127,0.02556,118790.0,118780.0,0.68719289]
[1755006731727,0.02656,118790.0,118780.0,0.68819289]
[1755006732133,0.154011,118790.0,118780.0,0.68819289]
[1755006732435,0.154011,118790.0,118780.0,0.75606289]
[1755006733337,0.154011,118790.0,118780.0,0.1530589]
[1755006733536,0.187181,118790.0,118780.0,1.0885389]
[1755006733733,0.187181,118790.0,118780.0,1.69154289]
[1755006733937,0.187181,118790.0,118780.0,1.69146289]
[1755006734138,0.154011,118790.0,118780.0,1.69146289]
[1755006735132,0.0364051,118790.0,118780.0,1.90983089]
[1755006735337,0.0364051,118790.0,118780.0,1.90883089]
[1755006735638,0.0364051,118790.0,118780.0,1.90983089]
[1755006736026,0.0364051,118790.0,118780.0,1.85983089]
[1755006736836,0.01734897,118810.0,118800.0,0.0841748]
[1755006737035,0.1356236,118830.0,118820.0,0.0841607]
[1755006737230,0.2456236,118830.0,118820.0,0.0841607]
[1755006737430,0.2711836,118830.0,118820.0,0.0841607]
[1755006737724,0.13556,118830.0,118820.0,1.62240469]
[1755006737934,0.02556,118830.0,118820.0,1.62240469]
[1755006738933,0.02656,118830.0,118820.0,1.62340469]
[1755006739733,0.02556,118830.0,118820.0,1.62240469]
[1755006740033,0.128451,118830.0,118820.0,1.62340469]
[1755006740241,0.128451,118830.0,118820.0,1.0204007]
[1755006740538,0.128451,118830.0,118820.0,1.62340469]
[1755006741140,0.154011,118830.0,118820.0,1.62340469]
[1755006741736,0.128451,118830.0,118820.0,1.79171669]
[1755006742130,0.128451,118830.0,118820.0,1.79271669]
[1755006742737,0.1042437,118830.0,118820.0,1.84271669]
[1755006742931,0.001,118830.0,118820.0,1.84271669]
[1755006743132,0.02556,118870.0,118860.0,0.0841324]
[1755006743331,0.02556,118870.0,118860.0,1.62197639]
[1755006743543,0.02556,118870.0,118860.0,1.79023239]
[1755006743738,0.1172815,118890.0,118880.0,0.0841182]
[1755006743935,0.1355815,118890.0,118880.0,1.0212182]
[1755006744130,0.07703,118890.0,118880.0,1.62422219]
[1755006744334,0.1611412,118890.0,118880.0,1.0212182]
[1755006744537,0.1611412,118890.0,118880.0,1.62422219]
[1755006744745,0.1428412,118890.0,118880.0,1.62422219]
[1755006745146,0.05873,118890.0,118880.0,1.62422219]
[1755006745342,0.1096712,118890.0,118880.0,1.62422219]
[1755006745549,0.1611412,118890.0,118880.0,1.62422219]
[1755006745845,0.05873,118890.0,118880.0,1.62422219]
[1755006746041,0.05873,118890.0,118880.0,1.63249329]
[1755006746245,0.02656,118890.0,118880.0,1.63449329]
[1755006746543,0.128451,118890.0,118880.0,1.63778329]
[1755006746945,0.154011,118890.0,118880.0,1.63778329]
[1755006747444,0.0650699,118890.0,118880.0,1.80701529]
[1755006747642,0.07564246,118920.0,118910.0,0.0840972]
[1755006747844,0.07564246,118920.0,118910.0,1.62154119]
[1755006748043,0.09394246,118920.0,118910.0,1.62154119]
[1755006748244,0.09394246,118920.0,118910.0,1.0185372]
[1755006748437,0.17803256,118920.0,118910.0,1.62154119]
[1755006748639,0.04247246,118920.0,118910.0,1.62154119]
[1755006749639,0.01691246,118920.0,118910.0,1.62154119]
[1755006749846,0.01691246,118920.0,118910.0,1.0185372]
[1755006750036,0.001,118920.0,118910.0,1.62254119]
[1755006750848,0.128451,118920.0,118910.0,1.62254119]
[1755006751449,0.02556,118940.0,118930.0,0.084083]
[1755006751651,0.02556,118940.0,118930.0,1.6297442]
[1755006751849,0.02556,118940.0,118930.0,1.02674021]
[1755006752050,0.02556,118940.0,118930.0,1.6297442]
[1755006752352,0.1096359,118940.0,118930.0,1.69739647]
[1755006752553,0.02556,118940.0,118930.0,1.69739647]
[1755006752953,0.02556,118940.0,118930.0,1.69807647]
[1755006753355,0.02656,118940.0,118930.0,1.69907647]
[1755006753556,0.001,118940.0,118930.0,1.09607248]
[1755006753755,0.02873,118940.0,118930.0,1.69907647]
[1755006753955,0.1128059,118940.0,118930.0,1.69879647]
[1755006754156,0.02873,118940.0,118930.0,1.69879647]
[1755006755459,0.001,118940.0,118930.0,1.09579248]
[1755006755650,0.02873,118940.0,118930.0,1.69847647]
[1755006757169,0.001,118940.0,118930.0,1.69847647]
[1755006757562,0.02873,118940.0,118930.0,0.16199248]
[1755006757763,0.1638259,118940.0,118930.0,0.16131248]
[1755006757964,0.1638259,118940.0,118930.0,1.69755647]
[1755006758169,0.07975,118940.0,118930.0,1.69755647]
[1755006758371,0.1638259,118940.0,118930.0,1.09455248]
[1755006758664,0.1638259,118940.0,118930.0,1.09403248]
[1755006759064,0.1638259,118940.0,118930.0,0.07674948]
[1755006759264,0.76682989,118940.0,118930.0,0.93416]
[1755006759460,0.76682989,118940.0,118930.0,1.02661498]
[1755006759461,0.2638259,118940.0,118930.0,1.02661498]
[1755006759762,0.17975,118940.0,118930.0,1.63009897]
[1755006759963,0.02873,118940.0,118930.0,1.63077897]
[1755006760270,0.02873,118940.0,118930.0,1.69644464]
[1755006760470,0.1638259,118940.0,118930.0,1.69568464]
[1755006760772,0.1638259,118940.0,118930.0,1.09264065]
[1755006761173,0.1638259,118940.0,118930.0,0.09345498]
[1755006761375,0.1638259,118940.0,118930.0,1.02645498]
[1755006761666,0.1638259,118940.0,118930.0,0.085083]
[1755006762071,0.1638259,118940.0,118930.0,0.93396]
[1755006762263,0.1638259,118940.0,118930.0,0.0850829]
[1755006762461,0.1638259,118940.0,118930.0,0.001]
[1755006762462,0.86682989,118940.0,118930.0,0.001]
[1755006762666,0.86682989,118940.0,118930.0,0.93392]
[1755006762870,0.2638259,118940.0,118930.0,0.93392]
[1755006763070,0.86682989,118940.0,118930.0,1.0180029]
[1755006763274,0.86682989,118940.0,118930.0,0.93392]
[1755006763475,0.86682989,118940.0,118930.0,1.0180031]
[1755006763774,0.2638259,118940.0,118930.0,1.0180031]
[1755006764863,0.17975,118940.0,118930.0,1.62100709]
[1755006765070,0.2638262,118940.0,118930.0,1.62148709]
[1755006765264,0.17975,118940.0,118930.0,1.62148709]
[1755006765478,0.02873,118940.0,118930.0,1.62216709]
[1755006766476,0.1128062,118940.0,118930.0,1.62216709]
[1755006766771,0.1638262,118940.0,118930.0,0.0855631]
[1755006767177,0.81683019,118940.0,118930.0,0.0850831]
[1755006767374,0.12975,118940.0,118930.0,1.0176431]
[1755006767573,0.2138262,118940.0,118930.0,1.0176431]
[1755006767873,0.2138262,118940.0,118930.0,1.0176031]
[1755006768183,0.02873,118940.0,118930.0,1.62176709]
[1755006768680,0.1638262,118940.0,118930.0,0.0855631]
[1755006768879,0.1638262,118940.0,118930.0,1.0180431]
[1755006769181,0.1638262,118940.0,118930.0,0.0855631]
[1755006769479,0.1638262,118940.0,118930.0,1.62096709]
[1755006770483,0.1738262,118940.0,118930.0,0.0850831]
[1755006770784,0.80683019,118940.0,118930.0,0.0850831]
[1755006771483,0.2038262,118940.0,118930.0,0.0850831]
[1755006772382,0.2038262,118940.0,118930.0,0.68808709]
[1755006772585,0.2038262,118940.0,118930.0,0.0855631]
[1755006772775,0.2038262,118940.0,118930.0,0.68856709]
[1755006773081,0.2038262,118940.0,118930.0,1.0177631]
[1755006773380,0.2038262,118940.0,118930.0,1.0172831]
[1755006773779,0.2078262,118940.0,118930.0,0.0850831]
[1755006773975,0.2078262,118940.0,118930.0,1.0172031]
[1755006774182,0.2078262,118940.0,118930.0,0.0850831]
[1755006774384,0.2078262,118940.0,118930.0,1.0171631]
[1755006775278,0.2078262,118940.0,118930.0,1.0176431]
[1755006775485,0.2078262,118940.0,118930.0,1.0175231]
[1755006776576,0.2078262,118940.0,118930.0,1.62052709]
[1755006776880,0.2078262,118940.0,118930.0,0.0855631]
[1755006777083,0.2078262,118940.0,118930.0,1.0174431]
[1755006777984,0.2078262,118940.0,118930.0,1.0173631]
[1755006778485,0.2078262,118940.0,118930.0,0.0855631]
[1755006778678,0.2078262,118940.0,118930.0,1.0172431]
[1755006779189,0.2078262,118940.0,118930.0,1.62024709]
[1755006779687,0.1568064,118940.0,118930.0,1.62092709]
[1755006779887,0.1168064,118940.0,118930.0,1.62092709]
[1755006780686,0.03273,118940.0,118930.0,1.62092709]
[1755006780985,0.005,118940.0,118930.0,1.62092709]
[1755006781783,0.005,118940.0,118930.0,1.0179231]
[1755006782086,0.005,118940.0,118930.0,1.62092709]
[1755006782679,0.00457,118940.0,118930.0,1.62092709]
[1755006784184,1.66034038,118970.0,118960.0,0.0840624]
[1755006784385,1.65312038,118970.0,118960.0,1.61822639]
[1755006784884,1.68084038,118970.0,118960.0,0.68706639]
[1755006785382,1.68084038,118970.0,118960.0,0.0840624]
[1755006785581,1.68084038,118970.0,118960.0,0.68706639]
[1755006785776,0.0840624,118960.0,118950.0,1.2673058]
[1755006785981,0.1435224,118960.0,118950.0,1.2673058]
[1755006786282,0.05946,118960.0,118950.0,1.2673058]
[1755006786483,0.1640224,118960.0,118950.0,1.2673058]
[1755006786790,0.1640224,118960.0,118950.0,1.87030979]
[1755006787481,0.05946,118960.0,118950.0,1.87030979]
[1755006787688,1.51,118970.0,118960.0,0.0840625]
[1755006787881,1.51,118970.0,118960.0,0.68706649]
[1755006787882,1.6217754,118970.0,118960.0,0.68706649]
[1755006788182,0.1117754,118970.0,118960.0,0.0840625]
[1755006788387,0.1117754,118970.0,118960.0,0.68706649]
[1755006788588,1.52772,118970.0,118960.0,0.68706649]
[1755006788788,0.02772,118970.0,118960.0,0.68706649]
[1755006788987,0.03172,118970.0,118960.0,0.68706649]
[1755006789288,0.1157754,118970.0,118960.0,0.68706649]
[1755006789484,0.1177754,118970.0,118960.0,0.68706649]
[1755006790185,0.1177753,118970.0,118960.0,0.68706649]
[1755006790380,0.03372,118970.0,118960.0,0.68706649]
[1755006790781,0.1177753,118970.0,118960.0,0.68706649]
[1755006791084,0.03372,118970.0,118960.0,0.68706649]
[1755006791285,0.006,118970.0,118960.0,0.68706649]
[1755006791596,0.1177753,118970.0,118960.0,0.68706649]
[1755006791893,0.006,118970.0,118960.0,0.68706649]
[1755006792490,0.0900553,118970.0,118960.0,0.68706649]
[1755006792692,0.1177753,118970.0,118960.0,1.61730649]
[1755006793390,0.1177753,118970.0,118960.0,1.0143025]
[1755006793697,0.03372,118970.0,118960.0,1.61730649]
[1755006793887,0.006,118970.0,118960.0,1.61730649]
[1755006794886,0.006,118970.0,118960.0,1.0143025]
[1755006795198,0.0900556,118970.0,118960.0,1.61730649]
[1755006795402,0.03372,118970.0,118960.0,1.61730649]
[1755006795592,0.1177756,118970.0,118960.0,1.61698649]
[1755006795793,0.1495156,118970.0,118960.0,1.61694649]
[1755006796090,0.2228156,118970.0,118960.0,1.0139427]
[1755006796299,0.0840627,118960.0,118950.0,0.85520239]
[1755006796490,0.1363027,118960.0,118950.0,1.1820384]
[1755006796690,1.6640227,118960.0,118950.0,1.78504239]
[1755006798395,1.52972,118960.0,118950.0,0.85520239]
[1755006798589,1.6660227,118960.0,118950.0,1.78476239]
[1755006798997,1.58196,118960.0,118950.0,1.78476239]
[1755006799198,1.56146,118960.0,118950.0,1.78476239]
[1755006799495,1.6660227,118960.0,118950.0,0.85520239]
[1755006799694,0.0840698,118950.0,118940.0,0.252224]
[1755006799897,0.2168298,118950.0,118940.0,1.181664]
[1755006800095,0.2168298,118950.0,118940.0,1.78466799]
[1755006800291,0.1117897,118950.0,118940.0,1.78466799]
[1755006801191,1.5860627,118960.0,118940.0,1.86874339]
[1755006801392,1.5860627,118960.0,118950.0,0.0840697]
[1755006801393,1.52972,118960.0,118950.0,0.0840697]
[1755006801589,1.6137827,118960.0,118950.0,0.0840697]
[1755006801905,1.6640227,118960.0,118950.0,1.0132697]
[1755006802096,1.6640227,118960.0,118950.0,1.0132297]
[1755006802506,1.6650227,118960.0,118950.0,1.0132297]
[1755006803005,1.6650227,118960.0,118950.0,1.61623369]
[1755006803198,1.58196,118960.0,118950.0,1.61623369]
[1755006803498,1.52972,118960.0,118950.0,1.61623369]
[1755006804007,1.52972,118960.0,118950.0,1.0132297]
[1755006804306,1.6660227,118960.0,118950.0,1.0132297]
[1755006804496,1.6660227,118960.0,118950.0,0.0840697]
[1755006804697,1.6660227,118960.0,118950.0,1.61599369]
[1755006804902,1.6660227,118960.0,118950.0,1.0129897]
[1755006805107,1.58196,118960.0,118950.0,1.61599369]
[1755006805995,1.502,118960.0,118950.0,2.21899768]
[1755006806405,0.002,118960.0,118950.0,2.21899768]
[1755006807204,0.002,118960.0,118950.0,2.40600931]
[1755006807593,1e-07,118960.0,118950.0,2.23788131]
[1755006807800,0.02782,118980.0,118970.0,0.0840556]
[1755006808098,0.0001,118980.0,118970.0,1.61569959]
[1755006808904,0.0031,118980.0,118970.0,1.61669959]
[1755006809405,0.0081,118980.0,118970.0,1.61669959]
[1755006809805,0.0031,118980.0,118970.0,1.61669959]
[1755006809996,0.0051,118980.0,118970.0,1.61669959]
[1755006810498,0.0051,118980.0,118970.0,1.68259855]
[1755006810696,0.0021,118980.0,118970.0,1.68159855]
[1755006811100,1e-07,118980.0,118970.0,1.70010553]
[1755006811409,0.02772,119000.0,118990.0,0.0840415]
[1755006811600,1.61109,119000.0,118990.0,0.68704549]
[1755006811908,1.61109,119000.0,118990.0,1.61528549]
[1755006812208,1.61109,119000.0,118990.0,1.62359145]
[1755006813404,1.6951245,119000.0,118990.0,1.62359145]
[1755006813597,1.6961245,119000.0,118990.0,1.62747145]
[1755006814198,1.61209,119000.0,118990.0,1.02446746]
[1755006814393,1.61209,119000.0,118990.0,1.63147145]
[1755006814598,1.5417,119000.0,118990.0,1.63147145]
[1755006814904,1.52872,119000.0,118990.0,1.63147145]
[1755006815102,1.6640844,119000.0,118990.0,0.01630596]
[1755006815405,2.39708839,119000.0,118990.0,0.008]
[1755006815804,1.7940844,119000.0,118990.0,0.008]
[1755006816399,1.7930844,119000.0,118990.0,0.006]
[1755006817298,1.7930844,119000.0,118990.0,0.0900415]
[1755006817494,0.0840415,118990.0,118980.0,0.1680867]
[1755006817701,0.3157115,118990.0,118980.0,0.1680867]
[1755006818699,0.3157115,118990.0,118980.0,0.1700867]
[1755006818910,0.3157115,118990.0,118980.0,0.0860426]
[1755006819109,0.3157115,118990.0,118980.0,1.0135626]
[1755006819608,0.3167115,118990.0,118980.0,1.0155626]
[1755006821505,0.91971549,118990.0,118980.0,0.004]
[1755006822213,0.91971549,118990.0,118960.0,0.1681236]
[1755006822214,0.0840556,118970.0,118960.0,0.1681254]
[1755006822418,0.3357256,118970.0,118960.0,0.0840627]
[1755006823007,0.3357256,118970.0,118960.0,0.71813669]
[1755006823211,0.3357256,118970.0,118960.0,0.73262669]
[1755006823411,0.3176256,118970.0,118960.0,0.73562669]
[1755006823598,0.001,118970.0,118960.0,0.73562669]
[1755006823908,0.0289,118970.0,118960.0,0.74468669]
[1755006824411,0.0279,118970.0,118960.0,0.74468669]
[1755006824613,0.0299,118970.0,118960.0,0.74468669]
[1755006825511,0.0299,118970.0,118960.0,0.74268669]
[1755006825709,0.003,118970.0,118960.0,0.74268669]
[1755006826906,1e-07,118970.0,118960.0,0.74268669]
[1755006827112,1e-07,118970.0,118960.0,0.1396827]
[1755006827313,1e-07,118970.0,118960.0,0.74268669]
[1755006828516,1.5000001,118970.0,118960.0,0.74268669]
[1755006828711,1.5000001,118970.0,118960.0,0.1396827]
[1755006828905,1.5000001,118970.0,118960.0,0.74268669]
[1755006829107,1.5269001,118970.0,118960.0,1.66900669]
[1755006829312,1e-07,118970.0,118960.0,1.66900669]
[1755006830219,0.05913,118990.0,118980.0,0.33618]
[1755006830518,0.13167,118990.0,118980.0,1.91090399]
[1755006830714,0.11257,118990.0,118980.0,1.91090399]
[1755006831013,0.04421696,119000.0,118990.0,0.0840416]
[1755006831217,1.54421696,119000.0,118990.0,0.74166559]
[1755006831619,1.57644696,119000.0,118990.0,0.74166559]
[1755006831817,1.54421696,119000.0,118990.0,0.74166559]
[1755006832619,1.54521696,119000.0,118990.0,0.74366559]
[1755006832813,1.51831696,119000.0,118990.0,0.73460559]
[1755006833120,1.54521696,119000.0,118990.0,0.74366559]
[1755006833325,1.54921696,119000.0,118990.0,0.74366559]
[1755006834028,1.5279,119000.0,118990.0,0.74466559]
[1755006834517,1.501,119000.0,118990.0,0.74466559]
[1755006834913,1.5279,119000.0,118990.0,0.74466559]
[1755006836416,1.5279,119000.0,118990.0,1.66986559]
[1755006836417,1.57923,119000.0,118990.0,1.66986559]
[1755006836720,1.6632644,119000.0,118990.0,0.74466559]
[1755006837020,1.6632644,119000.0,118990.0,1.66080559]
[1755006837614,1.6632644,119000.0,118990.0,1.66064559]
[1755006837918,1.6632644,119000.0,118990.0,0.0870416]
[1755006838116,1.6632644,119000.0,118990.0,0.0870415]
[1755006838423,1.6632644,119000.0,118990.0,1.0120015]
[1755006838615,1.6632644,119000.0,118990.0,1.61500549]
[1755006839224,1.6632644,119000.0,118990.0,1.0120015]
[1755006839413,1.6632644,119000.0,118990.0,1.61500549]
[1755006839813,1.57923,119000.0,118990.0,1.61500549]
[1755006840119,1.57923,119000.0,118990.0,1.63242549]
[1755006840324,1.6632644,119000.0,118990.0,1.61464549]
[1755006840525,1.6632644,119000.0,118990.0,1.0116015]
[1755006841212,2.31626839,119000.0,118990.0,0.003]
[1755006841511,2.27626839,119000.0,118990.0,1.0115215]
[1755006841712,1.6732644,119000.0,118990.0,1.0115215]
[1755006842324,1.6732644,119000.0,118990.0,0.0870415]
[1755006844122,1.58923,119000.0,118990.0,0.69004549]
[1755006844622,1.6732644,119000.0,118990.0,0.69004549]
[1755006845125,1.6732644,119000.0,118990.0,0.70735549]
[1755006845320,1.6732644,119000.0,118990.0,0.72017549]
[1755006845528,1.57923,119000.0,118990.0,0.73344549]
[1755006845720,1.6632644,119000.0,118990.0,0.73344549]
[1755006846036,1.6632644,119000.0,118990.0,0.0870415]
[1755006846520,1.6932644,119000.0,118990.0,0.0870415]
[1755006846918,1.60923,119000.0,118990.0,0.72017549]
[1755006847121,1.57923,119000.0,118990.0,0.73344549]
[1755006848131,1.56013,119000.0,118990.0,0.74173549]
[1755006848316,1.6627544,119000.0,118990.0,0.73344549]
[1755006849031,1.6627544,119000.0,118990.0,1.0104415]
[1755006849326,1.6627544,119000.0,118990.0,0.0870415]
[1755006849527,1.7727544,119000.0,118990.0,1.0102815]
[1755006849732,1.7727544,119000.0,118990.0,0.92624]
[1755006850031,1.7727544,119000.0,118990.0,1.0102815]
[1755006850435,1.7727544,119000.0,118990.0,0.0870415]
[1755006850628,1.7727544,119000.0,118990.0,0.003]
[1755006850824,0.0840416,118990.0,118970.0,0.25396884]
[1755006851135,0.1633987,118980.0,118970.0,1.19356458]
[1755006851436,0.1633987,118980.0,118970.0,1.19352458]
[1755006851437,0.2833987,118980.0,118970.0,1.19352458]
[1755006852535,0.2833987,118980.0,118970.0,1.81783857]
[1755006852832,0.19935,118980.0,118970.0,1.81783857]
[1755006853035,0.1633987,118980.0,118970.0,1.82083857]
[1755006853227,0.07935,118980.0,118970.0,1.82083857]
[1755006853428,0.1633986,118980.0,118970.0,1.82083857]
[1755006853735,0.1633986,118980.0,118970.0,1.81883857]
[1755006854234,0.1633986,118980.0,118970.0,1.88471749]
[1755006854533,0.1643986,118980.0,118970.0,1.88171749]
[1755006856232,0.2168186,118980.0,118970.0,0.95883749]
[1755006856434,0.2168186,118980.0,118970.0,1.89393749]
[1755006856628,0.2168186,118980.0,118970.0,1.19492458]
[1755006856829,0.2668186,118980.0,118970.0,1.19492458]
[1755006857029,0.2668186,118980.0,118970.0,1.21223458]
[1755006857229,0.13096,118980.0,118970.0,1.81523857]
[1755006857429,0.2482286,118980.0,118970.0,1.82652857]
[1755006857725,0.2668186,118980.0,118970.0,1.81523857]
[1755006857924,0.2668186,118980.0,118970.0,1.81503857]
[1755006861235,0.18277,118980.0,118970.0,1.81503857]
[1755006861538,0.02854,118980.0,118970.0,1.82632857]
[1755006862742,0.1125887,118980.0,118970.0,1.82632857]
[1755006862938,0.1125887,118980.0,118970.0,1.89269159]
[1755006863139,0.02854,118980.0,118970.0,1.89269159]
[1755006863440,0.1125887,118980.0,118970.0,1.89269159]
[1755006863642,0.02854,118980.0,118970.0,1.89269159]
[1755006864543,0.1125886,118980.0,118970.0,1.89269159]
[1755006865039,0.02854,118980.0,118970.0,1.89269159]
[1755006865236,0.001,118980.0,118970.0,1.89269159]
[1755006865540,0.001,118980.0,118970.0,1.89105159]
[1755006865737,1.5,119000.0,118990.0,0.0840416]
[1755006866043,1.52754,119000.0,118990.0,1.66433559]
[1755006866340,1.5,119000.0,118990.0,1.66433559]
[1755006866735,1.52754,119000.0,118990.0,1.66433559]
[1755006867139,1.52954,119000.0,118990.0,1.66533559]
[1755006868041,1.53254,119000.0,118990.0,1.66533559]
[1755006868244,1.6497945,119000.0,118990.0,0.74493559]
[1755006868443,1.6683845,119000.0,118990.0,1.65460559]
[1755006868643,1.6683845,119000.0,118990.0,0.1316416]
[1755006868847,1.7483845,119000.0,118990.0,1.0048416]
[1755006869544,1.7483845,119000.0,118990.0,0.9208]
[1755006869746,1.7483845,119000.0,118990.0,1.0048416]
[1755006870242,1.7483845,119000.0,118990.0,1.62515559]
[1755006870748,1.7483845,119000.0,118990.0,1.63544559]
[1755006870946,1.7483845,119000.0,118990.0,1.62515559]
[1755006871647,1.7483845,119000.0,118990.0,0.92024]
[1755006871841,2.35138849,119000.0,118990.0,0.001]
[1755006872043,2.35138849,119000.0,118970.0,0.1021556]
[1755006872348,0.1364686,118980.0,118970.0,1.02161828]
[1755006872540,0.3436786,118980.0,118970.0,0.93756258]
[1755006872741,0.3436786,118980.0,118970.0,1.02161828]
[1755006873348,0.3436786,118980.0,118970.0,1.02261828]
[1755006873844,0.3436786,118980.0,118970.0,1.02361828]
[1755006874350,0.3436786,118980.0,118970.0,1.02261828]
[1755006874551,0.3446786,118980.0,118970.0,1.02361828]
[1755006875352,0.3446786,118980.0,118970.0,1.64326227]
[1755006875650,0.3446786,118980.0,118970.0,1.04025828]
[1755006876246,0.3446786,118980.0,118970.0,1.64326227]
[1755006876839,0.3446786,118980.0,118970.0,1.04025828]
[1755006877042,0.3446786,118980.0,118970.0,1.64326227]
[1755006877748,0.94768259,118980.0,118970.0,0.02048258]
[1755006877946,0.0840628,118960.0,118950.0,0.21199204]
[1755006878157,0.3239628,118960.0,118950.0,1.12999204]